bitfinex/quotes_BTCUSD_20240703
["timestamp","ask_amount","ask_price","bid_price","bid_amount"]
[1720036924045,0.217163,59786.0,59785.0,0.0176182]
[1720036924245,0.217163,59786.0,59785.0,0.0166182]
[1720036924795,0.167263,59786.0,59785.0,0.0166182]
[1720036925002,0.167258,59788.0,59785.0,0.0166182]
[1720036925563,0.001,59786.0,59785.0,0.0166182]
[1720036925772,0.001,59786.0,59785.0,0.36257242]
[1720036925991,0.001,59786.0,59785.0,1.272815]
[1720036926396,0.002,59786.0,59785.0,1.272815]
[1720036926853,0.001,59786.0,59785.0,1.282815]
[1720036926982,0.001,59786.0,59785.0,1.77771006]
[1720036928001,0.001,59786.0,59785.0,2.60594206]
[1720036928184,0.002,59786.0,59785.0,2.90594206]
[1720036928392,0.002,59786.0,59785.0,3.24047406]
[1720036928615,0.002,59786.0,59785.0,3.47377406]
[1720036928834,0.002,59786.0,59785.0,3.60728406]
[1720036929025,0.48093494,59801.0,59800.0,0.511672]
[1720036929261,0.48093494,59801.0,59800.0,1.1175902]
[1720036929396,0.00091301,59803.0,59802.0,0.501654]
[1720036929608,0.00091301,59803.0,59802.0,1.0193888]
[1720036929810,0.00091301,59803.0,59802.0,1.17975186]
[1720036930026,0.00091301,59803.0,59802.0,1.18975186]
[1720036930387,0.00879225,59818.0,59815.0,0.2594]
[1720036930570,0.00879225,59818.0,59817.0,0.818929]
[1720036930783,0.00879225,59818.0,59817.0,0.484576]
[1720036931138,0.00879225,59818.0,59817.0,0.3404]
[1720036931343,0.00879225,59818.0,59817.0,0.023]
[1720036931570,0.00879225,59818.0,59817.0,0.08305635]
[1720036931836,0.00879225,59818.0,59817.0,0.08905635]
[1720036931989,0.00979225,59818.0,59817.0,0.08905635]
[1720036932585,0.01379225,59818.0,59817.0,0.08905635]
[1720036932776,0.00979225,59818.0,59817.0,0.08905635]
[1720036933070,0.00979225,59818.0,59817.0,0.25623235]
[1720036933276,0.01079225,59818.0,59817.0,1.10123715]
[1720036933486,0.01079225,59818.0,59817.0,1.09123715]
[1720036933907,0.01079225,59818.0,59817.0,1.10123715]
[1720036934387,0.01079225,59818.0,59817.0,1.09123715]
[1720036934593,0.01079225,59818.0,59817.0,0.76688415]
[1720036934790,0.01079225,59818.0,59817.0,1.10123715]
[1720036934999,0.01079225,59818.0,59817.0,1.74269015]
[1720036935412,0.01079225,59818.0,59817.0,1.98789015]
[1720036935820,0.53083494,59834.0,59825.0,0.01]
[1720036936019,0.53083494,59834.0,59828.0,0.167143]
[1720036936225,0.08015582,59830.0,59827.0,0.167147]
[1720036936440,0.08015582,59830.0,59829.0,0.5638]
[1720036936848,0.08015582,59830.0,59828.0,0.02694]
[1720036936976,0.13005582,59830.0,59829.0,0.06005635]
[1720036937585,1.22597582,59830.0,59829.0,0.06005635]
[1720036937787,0.217051,59826.0,59825.0,0.0166182]
[1720036938792,0.0499,59827.0,59825.0,0.0166182]
[1720036939028,0.0499,59828.0,59825.0,0.0166182]
[1720036939195,0.006,59830.0,59826.0,0.5889]
[1720036939396,0.006,59830.0,59827.0,0.06055182]
[1720036939837,0.003,59830.0,59827.0,0.06055182]
[1720036940055,0.217035,59832.0,59827.0,0.06055182]
[1720036940297,0.0499,59834.0,59828.0,0.1169533]
[1720036940502,0.0499,59834.0,59829.0,0.023]
[1720036940699,0.0499,59831.0,59829.0,0.023]
[1720036940922,0.0499,59831.0,59830.0,0.06985429]
[1720036941262,0.0499,59834.0,59830.0,0.06985429]
[1720036941635,0.017,59834.0,59831.0,0.03769486]
[1720036941836,0.009,59834.0,59833.0,0.167131]
[1720036942039,0.009,59834.0,59833.0,0.0166182]
[1720036942388,0.0088036,59834.0,59833.0,0.08157664]
[1720036942594,0.0087054,59834.0,59833.0,0.24870764]
[1720036942782,0.008509,59834.0,59833.0,0.24870764]
[1720036942998,0.0090868,59835.0,59834.0,0.501387]
[1720036943199,0.0090868,59835.0,59834.0,0.59197029]
[1720036943200,0.0089886,59835.0,59834.0,0.59197029]
[1720036943335,0.0087922,59835.0,59834.0,0.59197029]
[1720036943707,0.008694,59835.0,59834.0,0.59197029]
[1720036943928,0.0085958,59835.0,59834.0,0.59197029]
[1720036944261,0.0085958,59835.0,59834.0,1.10152709]
[1720036944649,0.0085958,59835.0,59834.0,1.09652709]
[1720036944844,0.0085958,59835.0,59834.0,1.34002709]
[1720036945258,0.0085958,59835.0,59834.0,1.65252709]
[1720036946291,0.0085958,59835.0,59834.0,1.65152709]
[1720036946489,0.0085958,59835.0,59834.0,1.66652709]
[1720036946709,0.0095958,59835.0,59834.0,1.66652709]
[1720036946909,0.0085958,59835.0,59834.0,1.65152709]
[1720036947117,0.0095958,59835.0,59834.0,1.66552709]
[1720036947319,0.0105958,59835.0,59834.0,1.66952709]
[1720036947933,0.0105958,59835.0,59834.0,1.67952709]
[1720036948131,0.0105958,59835.0,59834.0,1.66952709]
[1720036949188,0.0105958,59835.0,59834.0,0.028]
[1720036949370,0.5119738,59835.0,59834.0,0.028]
[1720036949576,0.8961258,59835.0,59834.0,0.028]
[1720036949731,0.2276218,59835.0,59834.0,0.028]
[1720036949931,0.0105958,59835.0,59834.0,0.028]
[1720036950139,0.0095958,59835.0,59834.0,0.181129]
[1720036950354,0.0095958,59835.0,59834.0,0.2336684]
[1720036950552,0.0095958,59835.0,59834.0,0.0755394]
[1720036950553,0.0085958,59835.0,59834.0,0.0755394]
[1720036950760,0.08875162,59835.0,59834.0,0.023]
[1720036950978,0.08875162,59835.0,59831.0,0.023]
[1720036951196,0.08875162,59835.0,59831.0,0.3274358]
[1720036951443,0.217031,59833.0,59832.0,0.023]
[1720036951642,0.25587862,59835.0,59832.0,0.00970468]
[1720036951792,0.08875162,59835.0,59832.0,0.00970468]
[1720036951997,0.347,59844.0,59830.0,0.023]
[1720036952199,0.334255,59835.0,59829.0,0.023]
[1720036952434,0.08015582,59839.0,59830.0,0.02067662]
[1720036952435,0.167133,59833.0,59830.0,0.02067662]
[1720036952643,0.334258,59834.0,59831.0,0.023]
[1720036952644,0.167136,59832.0,59831.0,0.023]
[1720036952782,0.501405,59832.0,59831.0,0.023]
[1720036952999,0.167138,59831.0,59829.0,0.023]
[1720036953405,0.167129,59834.0,59829.0,0.023]
[1720036953660,0.167131,59833.0,59830.0,0.02067652]
[1720036953854,0.167131,59833.0,59831.0,0.023]
[1720036955277,0.167134,59832.0,59831.0,0.023]
[1720036955713,0.501403,59832.0,59831.0,0.004]
[1720036955919,1.502341,59832.0,59831.0,0.004]
[1720036956132,0.3324,59832.0,59824.0,0.0333182]
[1720036956348,0.167154,59825.0,59824.0,0.0333182]
[1720036956556,0.334279,59831.0,59824.0,0.0333182]
[1720036956730,0.167147,59828.0,59824.0,0.0333182]
[1720036956987,0.334279,59831.0,59825.0,0.02004792]
[1720036957460,0.167141,59830.0,59825.0,0.02004792]
[1720036957632,0.334266,59833.0,59826.0,0.023]
[1720036957840,0.167143,59829.0,59826.0,0.023]
[1720036959008,0.001,59828.0,59826.0,0.023]
[1720036959455,0.167141,59830.0,59826.0,0.023]
[1720036959653,0.168143,59829.0,59826.0,0.031]
[1720036960084,0.169143,59829.0,59826.0,0.039]
[1720036960291,0.168143,59829.0,59826.0,0.023]
[1720036960499,0.001,59828.0,59826.0,0.032]
[1720036960703,0.001,59828.0,59827.0,0.02525251]
[1720036960704,0.002,59828.0,59827.0,0.02525251]
[1720036960918,0.002,59828.0,59827.0,0.04825251]
[1720036961327,0.002,59828.0,59826.0,0.017]
[1720036961536,0.835742,59827.0,59826.0,0.009]
[1720036961739,0.167154,59825.0,59824.0,0.0166182]
[1720036961963,0.501462,59825.0,59824.0,0.0166182]
[1720036962171,0.50079667,59825.0,59824.0,0.0166182]
[1720036962752,0.50079667,59825.0,59818.0,0.0167]
[1720036962753,0.16717,59819.0,59818.0,0.0167]
[1720036962951,0.501511,59819.0,59818.0,0.0167]
[1720036963185,0.835852,59819.0,59818.0,0.0167]
[1720036964177,0.835852,59819.0,59818.0,0.0277]
[1720036964396,0.836852,59819.0,59818.0,0.0277]
[1720036964701,0.836852,59819.0,59818.0,0.0167]
[1720036964903,0.83674285,59819.0,59818.0,0.0167]
[1720036965113,0.83674285,59819.0,59818.0,0.0197]
[1720036965307,0.50240185,59819.0,59818.0,0.0197]
[1720036965582,0.16806085,59819.0,59818.0,0.0167]
[1720036965757,0.16606085,59819.0,59818.0,0.0167]
[1720036966187,0.334301,59827.0,59818.0,0.0167]
[1720036966188,0.334304,59826.0,59818.0,0.1769988]
[1720036966397,0.5808,59835.0,59821.0,0.407063]
[1720036966614,0.167147,59828.0,59821.0,0.5673618]
[1720036966818,0.167147,59828.0,59822.0,0.1725506]
[1720036967223,0.334276,59831.0,59822.0,0.3328494]
[1720036967437,0.167143,59829.0,59823.0,0.07844711]
[1720036967643,0.167143,59829.0,59824.0,0.023]
[1720036967860,0.167143,59829.0,59824.0,0.0396182]
[1720036968073,0.5808,59835.0,59825.0,0.1602988]
[1720036968284,0.167135,59832.0,59826.0,0.023]
[1720036968491,0.013,59835.0,59827.0,0.08221978]
[1720036968699,0.180126,59835.0,59828.0,0.190145]
[1720036968900,0.180126,59835.0,59829.0,0.22762962]
[1720036968901,0.167126,59835.0,59829.0,0.22762962]
[1720036969139,0.167126,59835.0,59830.0,0.023]
[1720036969554,0.009,59832.0,59830.0,0.023]
[1720036969753,0.167126,59835.0,59830.0,0.023]
[1720036969956,0.180126,59835.0,59831.0,0.04999944]
[1720036970277,0.180126,59835.0,59831.0,0.53615364]
[1720036970278,0.013,59835.0,59831.0,0.53615364]
[1720036970476,0.013,59835.0,59832.0,0.2481]
[1720036970680,0.013,59835.0,59833.0,0.11514019]
[1720036971296,0.167123,59836.0,59833.0,0.11514019]
[1720036971505,0.334222,59841.0,59833.0,0.11514019]
[1720036971712,0.167118,59838.0,59834.0,0.023]
[1720036971960,0.0371399,59837.0,59835.0,0.08221978]
[1720036972165,0.2042629,59836.0,59835.0,0.08221978]
[1720036973446,0.5385089,59836.0,59835.0,0.08221978]
[1720036973649,0.167126,59835.0,59834.0,0.023]
[1720036973842,0.20399599,59835.0,59833.0,0.002]
[1720036974172,0.167126,59835.0,59833.0,0.002]
[1720036974379,0.20399998,59834.0,59832.0,0.023]
[1720036974541,0.167129,59834.0,59833.0,0.0199917]
[1720036974727,0.33515901,59836.0,59833.0,0.0199917]
[1720036974728,0.16803801,59836.0,59833.0,0.0429917]
[1720036974928,0.03674822,59835.0,59834.0,0.023]
[1720036975133,0.00091301,59836.0,59834.0,0.023]
[1720036975325,0.00091301,59836.0,59835.0,0.02287449]
[1720036975532,0.03766414,59836.0,59835.0,0.02287449]
[1720036975752,0.03766414,59836.0,59835.0,0.04587449]
[1720036976931,0.03800755,59836.0,59835.0,0.04587449]
[1720036978325,0.03780664,59836.0,59835.0,0.04587449]
[1720036978526,0.03780319,59836.0,59835.0,0.37329929]
[1720036978856,0.03780319,59836.0,59835.0,0.1832988]
[1720036979609,0.00091301,59836.0,59835.0,0.1832988]
[1720036980010,0.03788166,59836.0,59835.0,0.1832988]
[1720036980211,0.03788166,59836.0,59835.0,0.2367177]
[1720036980792,0.54025066,59836.0,59835.0,0.0604189]
[1720036980958,0.54125066,59836.0,59835.0,0.014]
[1720036981174,0.28107879,59836.0,59835.0,0.007]
[1720036981460,0.167126,59835.0,59828.0,0.415245]
[1720036981716,0.167126,59835.0,59829.0,0.2902463]
[1720036981927,0.16714,59830.0,59829.0,0.1069475]
[1720036982131,0.167143,59829.0,59828.0,0.0166182]
[1720036983053,0.501429,59829.0,59828.0,0.0166182]
[1720036983455,0.501429,59829.0,59828.0,0.0396182]
[1720036983652,0.501429,59829.0,59828.0,0.0476182]
[1720036984280,0.501429,59829.0,59828.0,0.0396182]
[1720036984545,0.501429,59829.0,59828.0,0.0436182]
[1720036984726,0.501429,59829.0,59828.0,0.0476182]
[1720036986949,0.167143,59829.0,59828.0,0.0476182]
[1720036987350,0.167143,59829.0,59828.0,0.031]
[1720036988898,1.170001,59829.0,59828.0,0.008]
[1720036989895,1.170001,59829.0,59828.0,0.004]
[1720036990259,1.732201,59829.0,59828.0,0.007]
[1720036990472,1.732201,59829.0,59828.0,0.003]
[1720036990786,1.732201,59829.0,59828.0,0.006]
[1720036991213,1.76076319,59829.0,59828.0,0.006]
[1720036991410,2.12504919,59829.0,59828.0,0.006]
[1720036991615,2.19146906,59829.0,59828.0,0.006]
[1720036991968,1.82718306,59829.0,59828.0,0.006]
[1720036992757,1.82718306,59829.0,59828.0,0.003]
[1720036993153,1.83218306,59829.0,59828.0,0.003]
[1720036993393,0.668594,59827.0,59826.0,0.00083]
[1720036993602,1.19857733,59827.0,59826.0,0.00083]
[1720036994178,1.19908112,59827.0,59826.0,0.00083]
[1720036994794,1.20808112,59827.0,59826.0,0.00183]
[1720036996104,1.23808112,59827.0,59826.0,0.00183]
[1720036996508,1.24708112,59827.0,59826.0,0.00283]
[1720036997077,1.58137812,59827.0,59826.0,0.00283]
[1720036997321,2.8517318,59827.0,59826.0,0.00283]
[1720036997532,3.24579317,59827.0,59826.0,0.00283]
[1720036997829,3.32579317,59827.0,59826.0,0.00283]
[1720036999200,3.02579317,59827.0,59826.0,0.00283]
[1720037000268,3.0555138,59827.0,59826.0,0.00283]
[1720037000465,1.751591,59814.0,59813.0,0.0167]
[1720037000637,1.751591,59814.0,59798.0,0.54278834]
[1720037000638,0.60983255,59814.0,59808.0,0.0166182]
[1720037000841,0.835992,59809.0,59808.0,0.0166182]
[1720037001039,0.86452455,59809.0,59808.0,0.0166182]
[1720037001240,1.19892155,59809.0,59808.0,0.0166182]
[1720037002043,1.20092155,59809.0,59808.0,0.0166182]
[1720037003137,1.20292155,59809.0,59808.0,0.0166182]
[1720037003355,1.23227351,59809.0,59808.0,0.0166182]
[1720037003826,0.836132,59799.0,59798.0,0.12520654]
[1720037004030,0.86401651,59799.0,59798.0,0.12520654]
[1720037004320,0.86401651,59799.0,59798.0,0.10858834]
[1720037004321,1.19846951,59799.0,59798.0,0.10858834]
[1720037004923,1.19846951,59799.0,59798.0,0.11944717]
[1720037005096,1.19946951,59799.0,59798.0,0.12744717]
[1720037005297,1.19946951,59799.0,59798.0,0.11658834]
[1720037005298,1.53392251,59799.0,59798.0,0.11658834]
[1720037005509,1.85422131,59799.0,59798.0,0.09988834]
[1720037005762,2.10482131,59799.0,59798.0,0.09988834]
[1720037006050,2.41972131,59799.0,59798.0,0.09988834]
[1720037006252,2.3928368,59799.0,59798.0,0.08718834]
[1720037006499,2.42205266,59799.0,59798.0,0.08718834]
[1720037006844,2.42205266,59799.0,59798.0,0.09590717]
[1720037007028,2.42205266,59799.0,59798.0,0.08718834]
[1720037007239,2.75450566,59799.0,59798.0,0.07518834]
[1720037007437,2.42105266,59799.0,59798.0,0.07618834]
[1720037007661,2.42205266,59799.0,59798.0,0.07618834]
[1720037008250,2.42105266,59799.0,59798.0,0.07518834]
[1720037008646,2.42405266,59799.0,59798.0,0.07518834]
[1720037008849,1.69214666,59799.0,59798.0,0.07518834]
[1720037009066,1.71039218,59799.0,59798.0,0.07518834]
[1720037009246,1.71439218,59799.0,59798.0,0.07518834]
[1720037009443,1.72804154,59799.0,59798.0,0.07518834]
[1720037009809,0.03724552,59799.0,59798.0,0.07518834]
[1720037010012,0.018,59799.0,59798.0,0.13949717]
[1720037010216,0.014,59799.0,59798.0,0.13949717]
[1720037010418,0.028,59799.0,59798.0,0.13949717]
[1720037011005,0.014,59799.0,59798.0,0.13949717]
[1720037011213,0.167221,59801.0,59798.0,0.13949717]
[1720037011494,0.167221,59801.0,59799.0,0.07073972]
[1720037011824,0.1,59802.0,59799.0,0.07073972]
[1720037011825,0.267219,59802.0,59799.0,0.07073972]
[1720037012042,0.334389,59811.0,59799.0,0.07073972]
[1720037012244,0.01976805,59812.0,59800.0,0.09604463]
[1720037012445,0.3029,59814.0,59802.0,0.334435]
[1720037012656,0.167191,59812.0,59803.0,0.167214]
[1720037012846,0.167193,59811.0,59803.0,0.167214]
[1720037013072,0.167197,59810.0,59804.0,0.09555518]
[1720037013265,0.167197,59810.0,59801.0,0.21363512]
[1720037013715,0.167197,59810.0,59802.0,0.167217]
[1720037014003,0.167197,59810.0,59803.0,0.06441197]
[1720037014225,0.009,59812.0,59805.0,0.167208]
[1720037014503,0.185191,59812.0,59805.0,0.0166182]
[1720037014740,0.185191,59812.0,59806.0,0.04154582]
[1720037014935,0.176191,59812.0,59806.0,0.04154582]
[1720037015298,0.007,59810.0,59806.0,0.04154582]
[1720037015499,0.007,59810.0,59807.0,0.565]
[1720037015917,0.836035,59806.0,59805.0,0.0176182]
[1720037016132,0.836035,59806.0,59789.0,0.26]
[1720037016133,0.501688,59798.0,59797.0,0.0166182]
[1720037016327,0.501688,59798.0,59786.0,0.0334]
[1720037016328,0.334465,59797.0,59790.0,0.05984]
[1720037016618,0.501747,59791.0,59790.0,0.01654711]
[1720037017655,0.167246,59792.0,59790.0,0.01654711]
[1720037018278,0.334491,59793.0,59790.0,0.01654711]
[1720037018279,0.167249,59791.0,59790.0,0.01654711]
[1720037018702,0.501747,59791.0,59790.0,0.01654711]
[1720037018899,0.501747,59791.0,59790.0,0.02454711]
[1720037018900,0.168249,59791.0,59790.0,0.02454711]
[1720037019131,0.168249,59791.0,59790.0,0.01654711]
[1720037019522,0.169249,59791.0,59790.0,0.01954711]
[1720037019687,0.503747,59791.0,59790.0,0.01954711]
[1720037020088,0.503747,59791.0,59790.0,0.02754711]
[1720037020812,0.502747,59791.0,59790.0,0.02454711]
[1720037021106,0.503747,59791.0,59790.0,0.02754711]
[1720037021307,0.502747,59791.0,59790.0,0.02754711]
[1720037021505,0.502747,59791.0,59790.0,0.01954711]
[1720037021741,0.503747,59791.0,59790.0,0.02754711]
[1720037021954,0.502747,59791.0,59790.0,0.01954711]
[1720037022431,0.838245,59791.0,59790.0,0.02754711]
[1720037023528,1.172743,59791.0,59790.0,0.011]
[1720037024524,1.202743,59791.0,59790.0,0.011]
[1720037025481,1.7275398,59791.0,59790.0,0.011]
[1720037025711,2.32312581,59791.0,59790.0,0.011]
[1720037025913,2.72312581,59791.0,59790.0,0.011]
[1720037026491,0.501882,59775.0,59774.0,0.04173]
[1720037026686,0.501882,59775.0,59774.0,0.08676311]
[1720037028197,0.83647,59775.0,59774.0,0.08676311]
[1720037028614,0.83647,59775.0,59774.0,0.05827711]
[1720037028815,0.83747,59775.0,59774.0,0.06527711]
[1720037029023,0.83647,59775.0,59774.0,0.02487711]
[1720037029242,0.83747,59775.0,59774.0,0.02787711]
[1720037029444,0.83847,59775.0,59774.0,0.03487711]
[1720037029620,0.83647,59775.0,59774.0,0.02487711]
[1720037029857,1.171058,59775.0,59774.0,0.02487711]
[1720037030245,0.83647,59775.0,59774.0,0.02487711]
[1720037031773,0.83647,59775.0,59774.0,0.00833]
[1720037032433,0.83647,59775.0,59774.0,0.065396]
[1720037032633,0.501882,59775.0,59774.0,0.065396]
[1720037032783,0.510882,59775.0,59774.0,0.065396]
[1720037032960,0.84547,59775.0,59774.0,0.065396]
[1720037033164,0.84047,59775.0,59774.0,0.065396]
[1720037033369,0.84447,59775.0,59774.0,0.065396]
[1720037033566,0.84447,59775.0,59774.0,0.066396]
[1720037033778,0.84447,59775.0,59774.0,0.00933]
[1720037033974,0.84447,59775.0,59774.0,0.00833]
[1720037033975,0.84047,59775.0,59774.0,0.00833]
[1720037034809,0.84047,59775.0,59774.0,0.00803614]
[1720037035205,0.83647,59775.0,59774.0,0.00803614]
[1720037035385,1.173058,59775.0,59774.0,0.00803614]
[1720037035872,1.174058,59775.0,59774.0,0.00803614]
[1720037036079,0.9997688,59775.0,59774.0,0.00803614]
[1720037036284,0.86538229,59775.0,59774.0,0.00803614]
[1720037036487,0.170294,59775.0,59774.0,0.00803614]
[1720037036694,0.504882,59775.0,59774.0,0.00803614]
[1720037036892,0.83947,59775.0,59774.0,0.00803614]
[1720037037520,1.174058,59775.0,59774.0,0.00803614]
[1720037037694,1.173058,59775.0,59774.0,0.00803614]
[1720037038668,1.171058,59775.0,59774.0,0.00803614]
[1720037038804,1.171058,59775.0,59774.0,0.00903614]
[1720037038999,1.171058,59775.0,59774.0,0.01003614]
[1720037039318,1.171058,59775.0,59774.0,0.00903614]
[1720037039726,1.172058,59775.0,59774.0,0.00903614]
[1720037039963,1.172058,59775.0,59774.0,0.00803614]
[1720037040352,1.181058,59775.0,59774.0,0.00903614]
[1720037041069,1.2050412,59775.0,59774.0,0.00903614]
[1720037041907,1.2030412,59775.0,59774.0,0.00903614]
[1720037042136,0.8684532,59775.0,59774.0,0.00903614]
[1720037042322,0.1992772,59775.0,59774.0,0.00903614]
[1720037042530,0.8754532,59775.0,59774.0,0.00903614]
[1720037042730,0.8754532,59775.0,59774.0,0.04305275]
[1720037042938,0.015,59775.0,59774.0,0.04305275]
[1720037043060,0.015,59775.0,59774.0,0.54494175]
[1720037043256,0.015,59775.0,59774.0,0.87953475]
[1720037043507,0.015,59775.0,59774.0,1.25953355]
[1720037043719,0.015,59775.0,59774.0,1.28253355]
[1720037043957,0.015,59775.0,59774.0,1.31253355]
[1720037044179,0.007,59775.0,59774.0,1.28153355]
[1720037044349,0.007,59775.0,59774.0,1.34153355]
[1720037044551,0.007,59775.0,59774.0,1.67073355]
[1720037045014,0.334499,59791.0,59781.0,0.5489]
[1720037045193,0.64819094,59789.0,59783.0,0.167271]
[1720037045391,0.167256,59789.0,59783.0,0.167271]
[1720037046447,0.00291301,59790.0,59786.0,0.167261]
[1720037046598,0.00291301,59790.0,59787.0,0.069906]
[1720037046802,0.00091301,59790.0,59786.0,0.167262]
[1720037047000,0.00091301,59790.0,59787.0,0.167259]
[1720037047250,0.00091301,59790.0,59788.0,0.0836314]
[1720037047488,0.00091301,59790.0,59788.0,0.10017851]
[1720037047656,0.00091301,59790.0,59788.0,0.26743451]
[1720037048455,0.008,59789.0,59788.0,0.10017851]
[1720037048862,0.00091301,59790.0,59788.0,0.10017851]
[1720037049114,0.00091301,59790.0,59789.0,0.02684395]
[1720037049960,0.00091301,59790.0,59788.0,0.02154711]
[1720037050175,0.24740982,59789.0,59788.0,0.02154711]
[1720037050350,0.08015582,59789.0,59788.0,0.01854711]
[1720037050577,0.08015582,59789.0,59788.0,0.03712862]
[1720037050913,0.91642782,59789.0,59788.0,0.03712862]
[1720037051124,1.96096745,59789.0,59788.0,0.01854711]
[1720037051333,1.96096745,59789.0,59780.0,0.01654711]
[1720037051334,0.03,59787.0,59780.0,0.01654711]
[1720037051655,0.501831,59781.0,59780.0,0.01654711]
[1720037051860,0.19266049,59781.0,59780.0,0.01654711]
[1720037052032,0.167277,59781.0,59780.0,0.01654711]
[1720037052220,0.52721335,59781.0,59780.0,0.01654711]
[1720037052848,0.52821335,59781.0,59780.0,0.02354711]
[1720037053288,1.38656735,59781.0,59780.0,0.02354711]
[1720037053491,1.38756735,59781.0,59780.0,0.01]
[1720037053933,1.75212135,59781.0,59780.0,0.01]
[1720037054134,1.72212135,59781.0,59780.0,0.01]
[1720037054280,1.94242015,59781.0,59780.0,0.01]
[1720037054478,1.94242015,59781.0,59780.0,0.007]
[1720037054479,1.94142015,59781.0,59780.0,0.007]
[1720037054925,0.83647,59775.0,59774.0,0.00803614]
[1720037055152,0.8628638,59775.0,59774.0,0.00803614]
[1720037056108,1.1974518,59775.0,59774.0,0.00803614]
[1720037056531,1.2034518,59775.0,59774.0,0.00803614]
[1720037058226,0.8688638,59775.0,59774.0,0.00803614]
[1720037060720,0.8678638,59775.0,59774.0,0.00803614]
[1720037061141,0.84147,59775.0,59774.0,0.00803614]
[1720037061349,0.86745853,59775.0,59774.0,0.00803614]
[1720037061755,0.86726068,59775.0,59774.0,0.00803614]
[1720037063257,0.86426068,59775.0,59774.0,0.00803614]
[1720037063658,0.86726068,59775.0,59774.0,0.00803614]
[1720037063862,1.20184868,59775.0,59774.0,0.00803614]
[1720037064290,1.19090564,59775.0,59774.0,0.00803614]
[1720037064495,0.85331764,59775.0,59774.0,0.00803614]
[1720037064657,0.87116521,59775.0,59774.0,0.00803614]
[1720037064853,0.85631757,59775.0,59774.0,0.00803614]
[1720037065073,0.85231757,59775.0,59774.0,0.00803614]
[1720037065269,0.51972957,59775.0,59774.0,0.00803614]
[1720037065458,0.52439959,59775.0,59774.0,0.00803614]
[1720037065657,0.85598759,59775.0,59774.0,0.00803614]
[1720037065858,0.85898759,59775.0,59774.0,0.00803614]
[1720037066275,0.85798759,59775.0,59774.0,0.00803614]
[1720037067113,0.85698759,59775.0,59774.0,0.00803614]
[1720037067326,0.84047,59775.0,59774.0,0.00803614]
[1720037067546,0.85767895,59775.0,59774.0,0.00803614]
[1720037068287,0.85667895,59775.0,59774.0,0.00803614]
[1720037070207,0.52209095,59775.0,59774.0,0.00803614]
[1720037070643,0.52233227,59775.0,59774.0,0.00803614]
[1720037071248,0.85692027,59775.0,59774.0,0.00803614]
[1720037071491,0.85392027,59775.0,59774.0,0.00803614]
[1720037071691,0.85092027,59775.0,59774.0,0.00803614]
[1720037071893,0.85183328,59775.0,59774.0,0.00803614]
[1720037072210,0.8928045,59775.0,59774.0,0.00803614]
[1720037073909,0.87535423,59775.0,59774.0,0.00803614]
[1720037074108,0.89358074,59775.0,59774.0,0.00803614]
[1720037074291,0.55927322,59775.0,59774.0,0.00803614]
[1720037075449,0.89386122,59775.0,59774.0,0.00803614]
[1720037075642,0.89380804,59775.0,59774.0,0.00803614]
[1720037076917,0.89410824,59775.0,59774.0,0.00803614]
[1720037077981,1.22869624,59775.0,59774.0,0.00803614]
[1720037079329,1.24469624,59775.0,59774.0,0.00903614]
[1720037080161,1.24936889,59775.0,59774.0,0.00903614]
[1720037080337,1.31096441,59775.0,59774.0,0.00903614]
[1720037080516,1.27304637,59775.0,59774.0,0.00903614]
[1720037083359,1.27252865,59775.0,59774.0,0.00903614]
[1720037084430,1.27252865,59775.0,59774.0,0.09268514]
[1720037084642,1.27252865,59775.0,59774.0,0.10203665]
[1720037086290,0.93794065,59775.0,59774.0,0.10203665]
[1720037086498,0.9154535,59775.0,59774.0,0.10203665]
[1720037086697,1.00188609,59775.0,59774.0,0.10203665]
[1720037086900,0.97772099,59775.0,59774.0,0.10203665]
[1720037087102,1.0018857,59775.0,59774.0,0.10203665]
[1720037089519,1.0033354,59775.0,59774.0,0.10203665]
[1720037092731,0.9154535,59775.0,59774.0,0.10203665]
[1720037092918,1.00373959,59775.0,59774.0,0.10203665]
[1720037093848,0.16726959,59775.0,59774.0,0.10203665]
[1720037094019,0.10410516,59775.0,59774.0,0.10203665]
[1720037094653,0.27139916,59775.0,59774.0,0.10203665]
[1720037095656,0.10410516,59775.0,59774.0,1.62481745]
[1720037095866,0.14946183,59790.0,59789.0,1.069972]
[1720037095867,0.00091301,59790.0,59789.0,1.069972]
[1720037096058,0.00091301,59790.0,59789.0,1.57231911]
[1720037096376,0.00091301,59790.0,59789.0,0.82965495]
[1720037096579,0.00091301,59790.0,59789.0,1.18716395]
[1720037096919,0.00091301,59790.0,59789.0,0.85265495]
[1720037097119,0.00091301,59790.0,59789.0,1.18716395]
[1720037097317,0.00091301,59790.0,59789.0,1.71197175]
[1720037097526,0.00091301,59790.0,59789.0,1.68197175]
[1720037097737,0.00091301,59790.0,59789.0,1.68597175]
[1720037098571,0.00191301,59790.0,59789.0,1.69697175]
[1720037099008,0.00191301,59790.0,59789.0,1.69297175]
[1720037099216,0.00191301,59790.0,59789.0,1.72297175]
[1720037099422,0.00291301,59790.0,59789.0,1.76397175]
[1720037099625,0.00291301,59790.0,59789.0,1.75297175]
[1720037099961,0.00291301,59790.0,59789.0,1.70497175]
[1720037099962,0.00391301,59790.0,59789.0,1.70497175]
[1720037100383,0.00291301,59790.0,59789.0,1.72297175]
[1720037100559,0.00291301,59790.0,59789.0,0.86665495]
[1720037100890,0.00191301,59790.0,59789.0,0.85265495]
[1720037101039,0.00291301,59790.0,59789.0,0.84810784]
[1720037101644,0.00191301,59790.0,59789.0,0.83610784]
[1720037101844,0.00291301,59790.0,59789.0,0.84710784]
[1720037102044,0.00291301,59790.0,59789.0,1.18161684]
[1720037102245,0.00291301,59790.0,59789.0,1.70942464]
[1720037102461,0.00191301,59790.0,59789.0,2.03172464]
[1720037102664,0.00191301,59790.0,59789.0,2.01772464]
[1720037102665,0.00091301,59790.0,59789.0,2.01772464]
[1720037102869,0.00091301,59790.0,59789.0,2.03072464]
[1720037103043,0.00091301,59790.0,59789.0,2.66523364]
[1720037103245,0.00091301,59790.0,59789.0,2.36523364]
[1720037103667,0.00091301,59790.0,59789.0,2.22422464]
[1720037103890,0.00091301,59790.0,59789.0,2.19422464]
[1720037104212,0.00191301,59790.0,59789.0,1.15340784]
[1720037104530,0.00191301,59790.0,59789.0,0.79589884]
[1720037105310,0.00191301,59790.0,59789.0,0.10264484]